fUST/lending_fUST_20260428
["ID","MTS","AMOUNT","RATE_DAILY","PERIOD"]
[421273421,1777317039614,-1440.72306476,0.00015685,2]
[421273422,1777317039624,-162.380719,0.0001571,2]
[421273423,1777317039633,-151.0,0.0001571,2]
[421273424,1777317039643,-445.202766,0.0001571,2]
[421273425,1777317039653,-162.380719,0.0001571,2]
[421273426,1777317039663,-537.6845,0.0001571,2]
[421273427,1777317039672,-1957.856,0.0001571,2]
[421273428,1777317039682,-537.6845,0.0001571,2]
[421273429,1777317039692,-151.0,0.0001571,2]
[421273430,1777317039702,-2150.738,0.0001571,2]
[421273431,1777317039712,-2026.14318649,0.00015765,2]
[421273432,1777317039721,-557.5788265,0.00015765,2]
[421273433,1777317039731,-160.0,0.00015778,7]
[421273434,1777317039740,-362.963068,0.00015778,7]
[421273435,1777317039750,-565.926136,0.00015778,7]
[421273436,1777317039759,-171.56405,0.00015778,7]
[421273437,1777317039769,-258.737584,0.00015778,2]
[421273438,1777317039778,-160.0,0.00015788,2]
[421273439,1777317039787,-19344.925752,0.00015788,2]
[421273440,1777317039796,-38529.851505,0.00015788,2]
[421273441,1777317039806,-821.0,0.00015796,2]
[421273442,1777317039817,-821.0,0.00015796,2]
[421273443,1777317039827,-500.0,0.00015799,2]
[421273444,1777317039836,-10192.08199196,0.000158,2]
[421273445,1777317039846,-383.05070298,0.000158,2]
[421273446,1777317039855,-796.0,0.000158,2]
[421273447,1777317039865,-825.0,0.00015801,2]
[421273448,1777317039874,-201.528743,0.00015807,7]
[421273449,1777317039883,-578.20924308,0.0001582,2]
[421273450,1777317039893,-500.0,0.00015862,2]
[421273451,1777317039904,-500.0,0.00015862,2]
[421273452,1777317039913,-30000.0,0.00015863,2]
[421273453,1777317039923,-25888.80468141,0.00015863,7]
[421273454,1777317039932,-500.0,0.00015863,2]
[421273455,1777317039942,-500.0,0.00015863,2]
[421273456,1777317039952,-200.0,0.00015867,2]
[421273457,1777317039961,-200.0,0.00015867,2]
[421273458,1777317039971,-500.0,0.0001587,2]
[421273459,1777317039980,-599.60298507,0.00015875,2]
[421273460,1777317039989,-569.53,0.00015899,2]
[421273461,1777317039999,-10192.08199196,0.000159,2]
[421273462,1777317040009,-383.05070298,0.000159,2]
[421273463,1777317040018,-235.0,0.00015913,2]
[421273464,1777317040027,-500.0,0.00015921,2]
[421273465,1777317040037,-600.0,0.00015927,2]
[421273466,1777317040047,-1440.72306476,0.00015927,2]
[421273467,1777317040056,-621.78829552,0.0001593,2]
[421273468,1777317040066,-644.79446246,0.00015985,2]
[421273469,1777317040076,-293.75854282,0.00016,2]
[421273470,1777317040085,-587.51708564,0.00016,2]
[421273471,1777317040095,-3000.0,0.00016,2]
[421273472,1777317040105,-235.0,0.00016007,2]
[421273473,1777317040114,-3000.0,0.0001601,2]
[421273474,1777317040124,-3000.0,0.0001602,2]
[421273475,1777317040133,-3000.0,0.0001603,2]
[421273477,1777317040143,-3000.0,0.0001604,2]
[421273479,1777317040152,-668.65185757,0.0001604,2]
[421273481,1777317040161,-3000.0,0.0001605,2]
[421273482,1777317040171,-235.0,0.0001606,2]
[421273483,1777317040180,-5000.0,0.0001606,2]
[421273484,1777317040189,-3000.0,0.0001606,2]
[421273485,1777317040199,-235.0,0.00016067,2]
[421273486,1777317040208,-3000.0,0.0001607,2]
[421273487,1777317040218,-3000.0,0.0001608,2]
[421273488,1777317040228,-3000.0,0.0001609,2]
[421273489,1777317040237,-216.96,0.00016093,2]
[421273490,1777317040247,-586.73545618,0.00016095,2]
[421273491,1777317040256,-10192.08199196,0.000161,2]
[421273492,1777317040266,-383.05070298,0.000161,2]
[421273493,1777317040275,-3000.0,0.000161,2]
[421273494,1777317040285,-3000.0,0.0001611,2]
[421273495,1777317040294,-3000.0,0.0001612,2]
[421273496,1777317040304,-3000.0,0.0001613,2]
[421273497,1777317040313,-3000.0,0.0001614,2]
[421273498,1777317040323,-3000.0,0.0001615,2]
[421273499,1777317040332,-3000.0,0.0001616,2]
[421273500,1777317040342,-235.0,0.00016166,2]
[421273501,1777317040351,-235.0,0.0001617,2]
[421273502,1777317040361,-3000.0,0.0001617,2]
[421273503,1777317040371,-1440.72306476,0.0001617,2]
[421273504,1777317040380,-3000.0,0.0001618,2]
[421273505,1777317040390,-3000.0,0.0001619,2]
[421273506,1777317040400,-500.0,0.00016195,2]
[421273507,1777317040410,-293.75854282,0.000162,2]
[421273508,1777317040420,-587.51708564,0.000162,2]
[421273509,1777317040429,-10192.08199196,0.000162,2]
[421273510,1777317040439,-383.05070298,0.000162,2]
[421273511,1777317040448,-3000.0,0.000162,2]
[421273512,1777317040459,-442.0,0.00016206,2]
[421273513,1777317040468,-740.0,0.00016206,2]
[421273514,1777317040478,-185.0,0.00016206,2]
[421273515,1777317040487,-3000.0,0.0001621,2]
[421273516,1777317040496,-3000.0,0.0001622,2]
[421273517,1777317040506,-3000.0,0.0001623,2]
[421273518,1777317040515,-3000.0,0.0001624,2]
[421273519,1777317040525,-3000.0,0.0001625,2]
[421273520,1777317040534,-151.0,0.00016258,2]
[421273521,1777317040544,-495.22975561,0.00016258,2]
[421273522,1777317040554,-180.62727801,0.00016258,2]
[421273523,1777317040563,-2230.315306,0.00016258,2]
[421273524,1777317040573,-3000.0,0.0001626,2]
[421273525,1777317040583,-3000.0,0.0001627,2]
[421273526,1777317040592,-3000.0,0.0001628,2]
[421273527,1777317040602,-3000.0,0.0001629,2]
[421273528,1777317040611,-293.75854282,0.000163,2]
[421273529,1777317040620,-587.51708564,0.000163,2]
[421273530,1777317040630,-3000.0,0.000163,2]
[421273531,1777317040639,-3000.0,0.0001631,2]
[421273532,1777317040649,-5965.770681,0.0001632,2]
[421273533,1777317040659,-235.0,0.00016324,2]
[421273534,1777317040668,-1442.57255289,0.00016338,2]
[421273535,1777317040678,-235.0,0.00016345,2]
[421273536,1777317040688,-235.0,0.00016352,2]
[421273537,1777317040698,-235.0,0.000164,2]
[421273538,1777317040707,-10192.08199196,0.000164,2]
[421273539,1777317040717,-151.0,0.00016438,2]
[421273540,1777317040727,-151.0,0.00016438,2]
[421273541,1777317040736,-151.0,0.00016438,2]
[421273542,1777317040746,-151.0,0.00016438,2]
[421273543,1777317040756,-151.0,0.00016438,2]
[421273544,1777317040766,-233.333559,0.00016438,2]
[421273545,1777317040775,-1482.681261,0.00016438,2]
[421273546,1777317040784,-1482.681261,0.00016438,2]
[421273547,1777317040794,-1482.681261,0.00016438,2]
[421273548,1777317040803,-1482.681261,0.00016438,2]
[421273549,1777317040813,-1482.681261,0.00016438,2]
[421273550,1777317040822,-1482.681261,0.00016438,2]
[421273551,1777317040832,-1482.681261,0.00016438,2]
[421273552,1777317040842,-1482.681261,0.00016438,2]
[421273553,1777317040852,-1482.681261,0.00016438,2]
[421273554,1777317040861,-1482.681261,0.00016438,2]
[421273555,1777317040871,-1482.681261,0.00016438,2]
[421273556,1777317040881,-1482.681261,0.00016438,2]
[421273557,1777317040890,-1482.681261,0.00016438,2]
[421273558,1777317040899,-1482.681261,0.00016438,2]
[421273559,1777317040908,-1482.681261,0.00016438,2]
[421273560,1777317040918,-1482.681261,0.00016438,2]
[421273561,1777317040927,-1482.681261,0.00016438,2]
[421273562,1777317040936,-1482.681261,0.00016438,2]
[421273563,1777317040948,-1482.681261,0.00016438,2]
[421273564,1777317040957,-1482.681258,0.00016438,2]
[421273565,1777317040967,-151.0,0.00016438,2]
[421273566,1777317040976,-151.0,0.00016438,2]
[421273567,1777317040986,-151.0,0.00016438,2]
[421273568,1777317040995,-151.0,0.00016438,2]
[421273569,1777317041005,-151.0,0.00016438,2]
[421273570,1777317041015,-151.0,0.00016438,2]
[421273571,1777317041024,-151.0,0.00016438,2]
[421273572,1777317041034,-286.66093,0.00016438,2]
[421273573,1777317041043,-151.0,0.00016438,2]
[421273574,1777317041053,-151.0,0.00016438,2]
[421273575,1777317041063,-151.0,0.00016438,2]
[421273576,1777317041072,-151.0,0.00016438,2]
[421273577,1777317041082,-190.925079,0.00016438,2]
[421273578,1777317041092,-1040.489551,0.00016438,2]
[421273579,1777317041101,-1040.489551,0.00016438,2]
[421273580,1777317041111,-1040.489551,0.00016438,2]
[421273581,1777317041120,-1040.489551,0.00016438,2]
[421273582,1777317041130,-1040.489551,0.00016438,2]
[421273583,1777317041139,-1040.489551,0.00016438,2]
[421273584,1777317041149,-1040.489551,0.00016438,2]
[421273585,1777317041159,-1040.489551,0.00016438,2]
[421273586,1777317041168,-1040.489551,0.00016438,2]
[421273587,1777317041181,-1040.489551,0.00016438,2]
[421273588,1777317041190,-1040.489551,0.00016438,2]
[421273589,1777317041200,-1040.489551,0.00016438,2]
[421273590,1777317041209,-1040.489551,0.00016438,2]
[421273591,1777317041219,-1040.489551,0.00016438,2]
[421273592,1777317041229,-1040.489551,0.00016438,2]
[421273593,1777317041238,-1040.489551,0.00016438,2]
[421273594,1777317041248,-1040.489551,0.00016438,2]
[421273595,1777317041258,-1040.489551,0.00016438,2]
[421273596,1777317041268,-1040.489551,0.00016438,2]
[421273597,1777317041278,-1040.489557,0.00016438,2]
[421273598,1777317041288,-152.335246,0.00016438,2]
[421273599,1777317041298,-1245.939559,0.00016438,2]
[421273600,1777317041307,-1245.939559,0.00016438,2]
[421273601,1777317041317,-1245.939559,0.00016438,2]
[421273602,1777317041327,-1245.939559,0.00016438,2]
[421273603,1777317041336,-1245.939559,0.00016438,2]
[421273604,1777317041347,-1245.939559,0.00016438,2]
[421273605,1777317041357,-1245.939559,0.00016438,2]
[421273606,1777317041366,-1245.939559,0.00016438,2]
[421273607,1777317041376,-151.0,0.00016438,2]
[421273608,1777317041385,-1245.939559,0.00016438,2]
[421273609,1777317041395,-151.0,0.00016438,2]
[421273610,1777317041404,-1245.939559,0.00016438,2]
[421273611,1777317041414,-210.401547,0.00016438,2]
[421273612,1777317041424,-1245.939559,0.00016438,2]
[421273613,1777317041433,-1245.939559,0.00016438,2]
[421273614,1777317041442,-1245.939559,0.00016438,2]
[421273615,1777317041452,-1245.939559,0.00016438,2]
[421273616,1777317041462,-1245.939559,0.00016438,2]
[421273617,1777317041471,-1245.939559,0.00016438,2]
[421273618,1777317041481,-1245.939559,0.00016438,2]
[421273619,1777317041490,-1245.939559,0.00016438,2]
[421273620,1777317041501,-1245.939559,0.00016438,2]
[421273621,1777317041511,-1245.939562,0.00016438,2]
[421273622,1777317041521,-362.699686,0.00016438,2]
[421273623,1777317041530,-362.699686,0.00016438,2]
[421273624,1777317041539,-362.699686,0.00016438,2]
[421273625,1777317041549,-362.699686,0.00016438,2]
[421273626,1777317041558,-362.699686,0.00016438,2]
[421273627,1777317041568,-362.699686,0.00016438,2]
[421273628,1777317041578,-362.699686,0.00016438,2]
[421273629,1777317041587,-362.699686,0.00016438,2]
[421273630,1777317041596,-362.699686,0.00016438,2]
[421273631,1777317041605,-362.699686,0.00016438,2]
[421273632,1777317041615,-362.699686,0.00016438,2]
[421273633,1777317041624,-362.699686,0.00016438,2]
[421273634,1777317041634,-362.699686,0.00016438,2]
[421273635,1777317041643,-362.699686,0.00016438,2]
[421273636,1777317041653,-362.699686,0.00016438,2]
[421273637,1777317041662,-362.699686,0.00016438,2]
[421273638,1777317041672,-362.699686,0.00016438,2]
[421273639,1777317041682,-362.699686,0.00016438,2]
[421273640,1777317041692,-362.699686,0.00016438,2]
[421273641,1777317041701,-362.699682,0.00016438,2]
[421273642,1777317041710,-151.0,0.00016438,2]
[421273643,1777317041720,-151.0,0.00016438,2]
[421273644,1777317041730,-151.0,0.00016438,2]
[421273645,1777317041739,-151.0,0.00016438,2]
[421273646,1777317041749,-151.0,0.00016438,2]
[421273647,1777317041759,-151.0,0.00016438,2]
[421273648,1777317041769,-151.0,0.00016438,2]
[421273649,1777317041973,-151.0,0.00016438,2]
[421273650,1777317041983,-151.0,0.00016438,2]
[421273651,1777317041993,-286.35805,0.00016438,2]
[421273652,1777317042003,-151.0,0.00016438,2]
[421273653,1777317042013,-151.0,0.00016438,2]
[421273654,1777317042023,-151.0,0.00016438,2]
[421273655,1777317042033,-151.0,0.00016438,2]
[421273656,1777317042043,-151.0,0.00016438,2]
[421273657,1777317042053,-151.0,0.00016438,2]
[421273658,1777317042063,-151.0,0.00016438,2]
[421273659,1777317042072,-151.0,0.00016438,2]
[421273660,1777317042082,-151.0,0.00016438,2]
[421273661,1777317042091,-151.0,0.00016438,2]
[421273662,1777317042101,-151.0,0.00016438,2]
[421273663,1777317042111,-151.0,0.00016438,2]
[421273664,1777317042120,-151.0,0.00016438,2]
[421273665,1777317042130,-151.0,0.00016438,2]
[421273666,1777317042139,-151.0,0.00016438,2]
[421273667,1777317042149,-151.0,0.00016438,2]
[421273668,1777317042159,-151.0,0.00016438,2]
[421273669,1777317042169,-151.0,0.00016438,2]
[421273670,1777317042178,-151.0,0.00016438,2]
[421273671,1777317042188,-151.0,0.00016438,2]
[421273672,1777317042198,-282.01,0.00016438,2]
[421273673,1777317042208,-157.544318,0.00016438,2]
[421273674,1777317042217,-157.544318,0.00016438,2]
[421273675,1777317042227,-157.544318,0.00016438,2]
[421273676,1777317042237,-157.544318,0.00016438,2]
[421273677,1777317042246,-157.544318,0.00016438,2]
[421273678,1777317042256,-157.544318,0.00016438,2]
[421273679,1777317042266,-157.544318,0.00016438,2]
[421273680,1777317042276,-157.544318,0.00016438,2]
[421273681,1777317042286,-157.544318,0.00016438,2]
[421273682,1777317042295,-157.544318,0.00016438,2]
[421273683,1777317042305,-157.544318,0.00016438,2]
[421273684,1777317042314,-157.544318,0.00016438,2]
[421273685,1777317042324,-157.544318,0.00016438,2]
[421273686,1777317042334,-157.544318,0.00016438,2]
[421273687,1777317042343,-157.544318,0.00016438,2]
[421273688,1777317042353,-157.544318,0.00016438,2]
[421273689,1777317042363,-157.544318,0.00016438,2]
[421273690,1777317042373,-157.544318,0.00016438,2]
[421273691,1777317042383,-157.544318,0.00016438,2]
[421273692,1777317042392,-157.544309,0.00016438,2]
[421273693,1777317042402,-536.01654834,0.00016469,2]
[421273694,1777317042412,-235.0,0.00016472,2]
[421273695,1777317042421,-293.75854282,0.000165,2]
[421273696,1777317042431,-587.51708564,0.000165,2]
[421273697,1777317042440,-235.0,0.00016505,2]
[421273698,1777317042450,-494.949638,0.00016567,7]
[421273699,1777317042459,-176.411989,0.00016567,2]
[421273700,1777317042469,-26379.444207,0.00016577,2]
[421273701,1777317042479,-337.77463647,0.00016586,2]
[421273702,1777317042489,-235.0,0.00016594,2]
[421273703,1777317042498,-293.75854282,0.000166,2]
[421273704,1777317042508,-587.51708564,0.000166,2]
[421273705,1777317042518,-10192.08199196,0.000166,2]
[421273706,1777317042528,-235.0,0.00016609,2]
[421273707,1777317042537,-10192.08199196,0.000167,2]
[421273708,1777317042547,-235.0,0.00016711,2]
[421273709,1777317042556,-235.0,0.0001672,2]
[421273710,1777317042570,-160.0,0.00016721,3]
[421273711,1777317042580,-235.0,0.00016724,2]
[421273712,1777317042590,-204.0,0.00016776,2]
[421273713,1777317042600,-235.0,0.00016799,2]
[421273714,1777317042609,-2312.83697232,0.00016806,2]
[421273715,1777317042618,-235.0,0.0001683,2]
[421273716,1777317042628,-200.0,0.00016874,2]
[421273717,1777317042637,-10192.08199196,0.000169,2]
[421273718,1777317042647,-235.0,0.00016922,2]
[421273719,1777317042657,-250.58,0.00016932,2]
[421273720,1777317042666,-42011.07489854,0.00017,8]
[421273721,1777317043000,-62274.5578665,0.00017,8]
[421273722,1777317043013,-29645.73086605,0.00017,8]
[421273742,1777317046387,-3422.40111646,0.000149,2]
[421273743,1777317046548,-1899.55281254,0.000149,2]
[421273744,1777317046558,-225.18309098,0.00016586,2]
[421273745,1777317046568,-570.74903203,0.00017,8]
[421273747,1777317046580,-21849.70687973,0.00017,8]
[421273749,1777317046591,-9184.83519259,0.00017,2]
[421273750,1777317046603,-8356.15167814,0.00017,2]
[421273751,1777317046614,-506.43322132,0.00017,2]
[421273752,1777317046625,-600.0,0.00017,2]
[421273753,1777317046635,-175.46574713,0.00017064,2]
[421273754,1777317046645,-438.93,0.000171,2]
[421273755,1777317046655,-10192.08199196,0.000171,2]
[421273756,1777317046665,-821.0,0.00017139,2]
[421273757,1777317046675,-235.0,0.00017182,2]
[421273758,1777317046684,-10192.08199196,0.000172,2]
[421273759,1777317046695,-235.0,0.00017213,2]
[421273760,1777317046704,-235.0,0.0001726,2]
[421273761,1777317046714,-235.0,0.00017312,2]
[421273762,1777317046724,-2398.4119403,0.00017354,2]
[421273763,1777317046734,-235.0,0.00017367,2]
[421273764,1777317046744,-9037.9427977,0.000174,2]
[421273765,1777317046756,-1154.13919426,0.000174,2]
[421273766,1777317046767,-4406.4510918,0.00017501,2]
[421273767,1777317046777,-720.0,0.0001752,2]
[421273768,1777317046787,-821.0,0.00017578,2]
[421273769,1777317046798,-10192.08199196,0.000176,2]
[421273770,1777317046808,-351.2507566,0.00017614,2]
[421273771,1777317046818,-821.0,0.00017619,2]
[421273772,1777317046828,-160.0,0.00017647,4]
[421273773,1777317046838,-821.0,0.00017729,2]
[421273774,1777317046847,-953.62696563,0.000178,2]
[421273775,1777317185241,2198.46,0.0001099,30]
[421273776,1777317202262,45205.0963796,0.00025212,120]
[421273777,1777317204681,500.0,0.00025212,120]
[421273778,1777318007130,-1000.0,0.00013699,2]
[421273779,1777318007152,-615.0,0.00013699,2]
[421273780,1777318007174,-150.0,0.00013773,2]
[421273781,1777318007196,-555.0,0.00013996,2]
[421273782,1777318007218,-185.0,0.00013996,2]
[421273783,1777318007240,-442.0,0.00013996,2]
[421273784,1777318007261,-160.0,0.00014751,2]
[421273785,1777318007282,-195.0,0.00014799,2]
[421273786,1777318007304,-300.0,0.00014799,2]
[421273787,1777318007325,-4656.70968784,0.000148,2]
[421273788,1777318007348,-500.0,0.00014898,2]
[421273789,1777318007370,-167.96905846,0.00014898,2]
[421273790,1777318007394,-500.0,0.00014898,2]
[421273791,1777318007416,-444.27728174,0.00014898,2]
[421273792,1777318007439,-500.0,0.00014898,2]
[421273793,1777318007461,-500.0,0.00014898,2]
[421273794,1777318007484,-500.0,0.00014898,2]
[421273795,1777318007507,-500.0,0.00014898,2]
[421273796,1777318007529,-500.0,0.00014898,2]
[421273797,1777318007552,-545.02938784,0.00014898,2]
[421273798,1777318007575,-500.0,0.00014898,2]
[421273799,1777318007594,-176.29209559,0.00014898,2]
[421273800,1777318007615,-407.15309627,0.00014898,2]
[421273801,1777318007635,-297.49754517,0.00014898,2]
[421273802,1777318007658,-2600.33975509,0.00014899,2]
[421273803,1777318050143,-23575.643928,0.00014899,2]
[421273848,1777318232001,-442.0,0.00013996,2]
[421273850,1777318232010,-4312.06507841,0.00014799,2]
[421273852,1777318232019,-150.0,0.00014841,2]
[421273854,1777318232029,-160.0,0.00014883,2]
[421273856,1777318232038,-77818.03649298,0.00014899,2]
[421273858,1777318232047,-12062.19827682,0.00014899,2]
[421273860,1777318232059,-2817.85544935,0.00014899,2]
[421273862,1777318232070,-637.34115877,0.00014899,2]
[421273915,1777318238175,-185.0,0.00013996,2]
[421273916,1777318238186,-10917.596513,0.00014899,2]
[421273917,1777318238195,-600.0,0.00014899,2]
[421273918,1777318238204,-204.84628366,0.000149,2]
[421273919,1777318238214,-164.92304419,0.000149,2]
[421273920,1777318238224,-3981.47010021,0.00015,2]
[421273921,1777318238233,-3981.47010021,0.000152,2]
[421273922,1777318238242,-3981.47010021,0.000153,2]
[421273923,1777318238252,-3981.47010021,0.000155,2]
[421273924,1777318238261,-208.24828162,0.00015527,2]
[421273925,1777318238271,-285.00716739,0.00015527,2]
[421273926,1777318238280,-4312.06507841,0.00015528,2]
[421273927,1777318238290,-3981.47010021,0.000156,2]
[421273928,1777318238299,-2068.21633368,0.00015719,2]
[421273929,1777318238308,-3981.47010021,0.000158,2]
[421273930,1777318238317,-598.10356958,0.00015853,2]
[421273931,1777318238327,-6042.89276337,0.00015863,2]
[421273932,1777318238337,-3981.47010021,0.000159,2]
[421273933,1777318238347,-204.84628363,0.000159,2]
[421273934,1777318238356,-5000.0,0.0001606,2]
[421273935,1777318238366,-3981.47010021,0.000161,2]
[421273936,1777318238375,-3981.47010021,0.000162,2]
[421273937,1777318238384,-186.89740796,0.0001623,2]
[421273938,1777318238394,-4312.06507841,0.00016256,2]
[421273939,1777318238403,-192.456,0.0001631,2]
[421273940,1777318238412,-3981.47010021,0.000164,2]
[421273941,1777318238422,-707.0,0.00016629,2]
[421273942,1777318238431,-707.0,0.0001668,2]
[421273943,1777318238441,-707.0,0.00016734,2]
[421273944,1777318238451,-707.0,0.00016773,2]
[421273945,1777318238461,-707.0,0.00016816,2]
[421273946,1777318238470,-177.0,0.00016841,2]
[421273947,1777318238480,-164.92304417,0.0001685,2]
[421273948,1777318238489,-204.84628363,0.000169,2]
[421273949,1777318238499,-707.0,0.00016937,2]
[421273950,1777318238508,-4312.06507841,0.00016985,2]
[421273951,1777318238517,-442.0,0.00016996,2]
[421273952,1777318238526,-185.0,0.00016996,2]
[421273953,1777318238536,-168.6021704,0.00016997,2]
[421273954,1777318238545,-500.0,0.00017,2]
[421273955,1777318238554,-501.92634288,0.00017,2]
[421273956,1777318238564,-707.0,0.00017025,2]
[421273957,1777318238573,-707.0,0.00017057,2]
[421273958,1777318238582,-707.0,0.00017112,2]
[421273959,1777318238591,-707.0,0.00017249,2]
[421273960,1777318238601,-707.0,0.00017303,2]
[421273961,1777318238610,-707.0,0.00017318,2]
[421273962,1777318238619,-707.0,0.00017358,2]
[421273963,1777318238628,-707.0,0.00017381,2]
[421273964,1777318238638,-707.0,0.00017424,2]
[421273965,1777318238648,-707.0,0.00017435,2]
[421273966,1777318238657,-225.18309098,0.00017444,2]
[421273967,1777318238666,-707.0,0.0001746,2]
[421273968,1777318238676,-707.0,0.00017536,2]
[421273969,1777318238685,-707.0,0.00017537,2]
[421273970,1777318238694,-707.0,0.00017692,2]
[421273971,1777318238703,-4312.06507841,0.00017714,2]
[421273972,1777318238713,-500.0,0.000178,2]
[421273973,1777318238722,-290.13733202,0.00017808,3]
[421273974,1777318238731,-827.0,0.00017854,2]
[421273975,1777318238741,-151.0,0.00017855,2]
[421273976,1777318238750,-707.0,0.00017869,2]
[421273977,1777318238759,-821.0,0.00017898,2]
[421273978,1777318238769,-2424.6,0.000179,2]
[421273979,1777318238779,-204.84628363,0.000179,2]
[421273980,1777318238788,-983.2121378,0.00017946,2]
[421273981,1777318238797,-707.0,0.00017967,2]
[421273982,1777318238806,-707.0,0.00017979,2]
[421273983,1777318238815,-707.0,0.00017989,2]
[421273984,1777318238824,-6628.95897761,0.00018,2]
[421273985,1777318238833,-72411.27720084,0.00018,2]
[421273986,1777318238843,-1623.11140203,0.00018,2]
[421273987,1777318238853,-151.0,0.00018,2]
[421273988,1777318238862,-209.75,0.00018,2]
[421273989,1777318238871,-209.75,0.00018,2]
[421273990,1777318238881,-209.75,0.00018,2]
[421273991,1777318238890,-151.0,0.00018,2]
[421273992,1777318238899,-151.0,0.00018,2]
[421273993,1777318238908,-151.0,0.00018,2]
[421273994,1777318238917,-5776.2460572,0.00018,2]
[421273995,1777318238927,-151.0,0.00018,2]
[421273996,1777318238936,-151.0,0.00018,2]
[421273997,1777318238945,-151.0,0.00018,2]
[421273998,1777318238955,-151.0,0.00018,2]
[421273999,1777318238964,-151.0,0.00018,2]
[421274000,1777318238973,-1674.647026,0.00018,2]
[421274001,1777318238982,-1674.647026,0.00018,2]
[421274002,1777318238991,-1674.647026,0.00018,2]
[421274003,1777318239000,-1674.647026,0.00018,2]
[421274004,1777318239010,-707.0,0.00018018,2]
[421274005,1777318239019,-507646.45587386,0.00018032,2]
[421274006,1777318239032,-883.90931957,0.00018032,2]
[421274007,1777318239043,-1633.04302455,0.00018032,2]
[421274349,1777318246513,-152.0,0.00016822,7]
[421274350,1777318246524,-152.0,0.00016822,7]
[421274351,1777318246534,-150.12206066,0.00017444,2]
[421274352,1777318246545,-25741.03785934,0.00018032,2]
[421274353,1777318246569,-3648.45138215,0.00018032,2]
[421274354,1777318246581,-163970.15559,0.00018032,2]
[421274355,1777318246841,-7841.39969273,0.00018032,2]
[421274356,1777318246853,-21414.73962,0.00018032,2]
[421274363,1777318249433,-15674.1178605,0.00018032,2]
[421274365,1777318249445,-2295.97,0.00018032,2]
[421274367,1777318249728,-1877.474212,0.00018032,2]
[421274374,1777318487269,788.32818149,0.0002368,120]
[421274375,1777318539308,198.0,0.00021738,120]
[421274376,1777318541391,198.0,0.00022825,120]
[421274377,1777318808670,159.0,0.00022427,120]
[421274378,1777318810051,159.0,0.00023548,120]
[421274380,1777318827763,192.0,0.00021265,120]
[421274381,1777318829005,192.0,0.00022329,120]
[421274382,1777318830258,192.0,0.00023445,120]
[421274383,1777318977936,175.65797028,0.00025098,120]
[421274384,1777319038177,175.65797027,0.00025098,120]
[421274386,1777319429177,153.54999901,0.00025115,120]
[421274449,1777319438393,-300.0,0.00012399,2]
[421274450,1777319438403,-605.0,0.00012399,2]
[421274451,1777319438412,-500.0,0.000124,2]
[421274452,1777319438422,-595.0,0.000124,2]
[421274453,1777319438432,-9098.4748233,0.000124,2]
[421274454,1777319438441,-300.0,0.00012647,2]
[421274455,1777319438451,-300.0,0.00012647,2]
[421274456,1777319438460,-300.0,0.00012647,2]
[421274457,1777319438470,-300.0,0.00012647,2]
[421274458,1777319438480,-300.0,0.00012647,2]
[421274459,1777319438489,-300.0,0.00012647,2]
[421274460,1777319438499,-300.0,0.00012647,2]
[421274461,1777319438509,-300.0,0.00012647,2]
[421274462,1777319438518,-300.0,0.00012647,2]
[421274463,1777319438528,-300.0,0.00012647,2]
[421274464,1777319438538,-300.0,0.00012647,2]
[421274465,1777319438547,-300.0,0.00012647,2]
[421274466,1777319438557,-300.0,0.00012647,2]